{"text_format":"3","workbook":"xlsx","n_sheets":3,"sheets":["Χρονοδιάγραμμα","Καταχώρηση δεδομένων","Name Lookup"],"not_rendered":{"defined_names":7},"read":"whole","date_system":"1900"}

{"sheet":"Χρονοδιάγραμμα","index":0,"n_rows":23,"n_cols":9,"rows_kept":23,"merged":[[1,1,2,4],[1,7,1,8]]}
[]
[null,"ΗΜΕΡΗΣΙΟ ΧΡΟΝΟΔΙΑΓΡΑΜΜΑ",{"$nulls":4},"Για την εβδομάδα από ","Εμφάνιση χρονοδιαγράμματος για: "]
[{"$nulls":5},{"$f":"WEEKDAY(Εβδομάδα,1)","v":3},"2012-07-03","Πέτρος"]
[null,null,{"$f":"$F$3=COLUMN(A$1)","v":false},{"$f":"$F$3=COLUMN(B$1)","v":false},true,false,false,false,false]
[null,null,{"$f":"COLUMN(A$1)-MATCH(TRUE,$C$4:$I$4,0)+Εβδομάδα+1","v":"2012-07-02"},"2012-07-03","2012-07-04","2012-07-05","2012-07-06","2012-07-07","2012-07-08"]
[null,"ΩΡΑ","ΔΕΥΤΕΡΑ","ΤΡΙΤΗ","ΤΕΤΑΡΤΗ","ΠΕΜΠΤΗ","ΠΑΡΑΣΚΕΥΗ","ΣΑΒΒΑΤΟ","ΚΥΡΙΑΚΗ"]
[null,"06:00:00",{"$f":"IFERROR(INDEX(tblData[],MATCH(C$5+$B7&Εμφάνιση_ονόματος,tblData[ΗΜΕΡΟΜΗΝΙΑ ΚΑΙ ΩΡΑ]&tblData[ΠΟΙΟΣ],0),3),\"\")","v":""},{"$f":"IFERROR(INDEX(tblData[],MATCH(D$5+$B7&Εμφάνιση_ονόματος,tblData[ΗΜΕΡΟΜΗΝΙΑ ΚΑΙ ΩΡΑ]&tblData[ΠΟΙΟΣ],0),3),\"\")","v":""},{"$f":"IFERROR(INDEX(tblData[],MATCH(E$5+$B7&Εμφάνιση_ονόματος,tblData[ΗΜΕΡΟΜΗΝΙΑ ΚΑΙ ΩΡΑ]&tblData[ΠΟΙΟΣ],0),3),\"\")","v":""},{"$f":"IFERROR(INDEX(tblData[],MATCH(F$5+$B7&Εμφάνιση_ονόματος,tblData[ΗΜΕΡΟΜΗΝΙΑ ΚΑΙ ΩΡΑ]&tblData[ΠΟΙΟΣ],0),3),\"\")","v":""},{"$f":"IFERROR(INDEX(tblData[],MATCH(G$5+$B7&Εμφάνιση_ονόματος,tblData[ΗΜΕΡΟΜΗΝΙΑ ΚΑΙ ΩΡΑ]&tblData[ΠΟΙΟΣ],0),3),\"\")","v":""},{"$f":"IFERROR(INDEX(tblData[],MATCH(H$5+$B7&Εμφάνιση_ονόματος,tblData[ΗΜΕΡΟΜΗΝΙΑ ΚΑΙ ΩΡΑ]&tblData[ΠΟΙΟΣ],0),3),\"\")","v":""},{"$f":"IFERROR(INDEX(tblData[],MATCH(I$5+$B7&Εμφάνιση_ονόματος,tblData[ΗΜΕΡΟΜΗΝΙΑ ΚΑΙ ΩΡΑ]&tblData[ΠΟΙΟΣ],0),3),\"\")","v":""}]
[null,"07:00:00",{"$f":"IFERROR(INDEX(tblData[],MATCH(C$5+$B8&Εμφάνιση_ονόματος,tblData[ΗΜΕΡΟΜΗΝΙΑ ΚΑΙ ΩΡΑ]&tblData[ΠΟΙΟΣ],0),3),\"\")","v":""},{"$f":"IFERROR(INDEX(tblData[],MATCH(D$5+$B8&Εμφάνιση_ονόματος,tblData[ΗΜΕΡΟΜΗΝΙΑ ΚΑΙ ΩΡΑ]&tblData[ΠΟΙΟΣ],0),3),\"\")","v":""},{"$f":"IFERROR(INDEX(tblData[],MATCH(E$5+$B8&Εμφάνιση_ονόματος,tblData[ΗΜΕΡΟΜΗΝΙΑ ΚΑΙ ΩΡΑ]&tblData[ΠΟΙΟΣ],0),3),\"\")","v":""},{"$f":"IFERROR(INDEX(tblData[],MATCH(F$5+$B8&Εμφάνιση_ονόματος,tblData[ΗΜΕΡΟΜΗΝΙΑ ΚΑΙ ΩΡΑ]&tblData[ΠΟΙΟΣ],0),3),\"\")","v":""},{"$f":"IFERROR(INDEX(tblData[],MATCH(G$5+$B8&Εμφάνιση_ονόματος,tblData[ΗΜΕΡΟΜΗΝΙΑ ΚΑΙ ΩΡΑ]&tblData[ΠΟΙΟΣ],0),3),\"\")","v":""},{"$f":"IFERROR(INDEX(tblData[],MATCH(H$5+$B8&Εμφάνιση_ονόματος,tblData[ΗΜΕΡΟΜΗΝΙΑ ΚΑΙ ΩΡΑ]&tblData[ΠΟΙΟΣ],0),3),\"\")","v":""},{"$f":"IFERROR(INDEX(tblData[],MATCH(I$5+$B8&Εμφάνιση_ονόματος,tblData[ΗΜΕΡΟΜΗΝΙΑ ΚΑΙ ΩΡΑ]&tblData[ΠΟΙΟΣ],0),3),\"\")","v":""}]
[null,"08:00:00",{"$f":"IFERROR(INDEX(tblData[],MATCH(C$5+$B9&Εμφάνιση_ονόματος,tblData[ΗΜΕΡΟΜΗΝΙΑ ΚΑΙ ΩΡΑ]&tblData[ΠΟΙΟΣ],0),3),\"\")","v":""},{"$f":"IFERROR(INDEX(tblData[],MATCH(D$5+$B9&Εμφάνιση_ονόματος,tblData[ΗΜΕΡΟΜΗΝΙΑ ΚΑΙ ΩΡΑ]&tblData[ΠΟΙΟΣ],0),3),\"\")","v":""},{"$f":"IFERROR(INDEX(tblData[],MATCH(E$5+$B9&Εμφάνιση_ονόματος,tblData[ΗΜΕΡΟΜΗΝΙΑ ΚΑΙ ΩΡΑ]&tblData[ΠΟΙΟΣ],0),3),\"\")","v":""},{"$f":"IFERROR(INDEX(tblData[],MATCH(F$5+$B9&Εμφάνιση_ονόματος,tblData[ΗΜΕΡΟΜΗΝΙΑ ΚΑΙ ΩΡΑ]&tblData[ΠΟΙΟΣ],0),3),\"\")","v":""},{"$f":"IFERROR(INDEX(tblData[],MATCH(G$5+$B9&Εμφάνιση_ονόματος,tblData[ΗΜΕΡΟΜΗΝΙΑ ΚΑΙ ΩΡΑ]&tblData[ΠΟΙΟΣ],0),3),\"\")","v":""},{"$f":"IFERROR(INDEX(tblData[],MATCH(H$5+$B9&Εμφάνιση_ονόματος,tblData[ΗΜΕΡΟΜΗΝΙΑ ΚΑΙ ΩΡΑ]&tblData[ΠΟΙΟΣ],0),3),\"\")","v":""},{"$f":"IFERROR(INDEX(tblData[],MATCH(I$5+$B9&Εμφάνιση_ονόματος,tblData[ΗΜΕΡΟΜΗΝΙΑ ΚΑΙ ΩΡΑ]&tblData[ΠΟΙΟΣ],0),3),\"\")","v":""}]
[null,"09:00:00",{"$f":"IFERROR(INDEX(tblData[],MATCH(C$5+$B10&Εμφάνιση_ονόματος,tblData[ΗΜΕΡΟΜΗΝΙΑ ΚΑΙ ΩΡΑ]&tblData[ΠΟΙΟΣ],0),3),\"\")","v":""},{"$f":"IFERROR(INDEX(tblData[],MATCH(D$5+$B10&Εμφάνιση_ονόματος,tblData[ΗΜΕΡΟΜΗΝΙΑ ΚΑΙ ΩΡΑ]&tblData[ΠΟΙΟΣ],0),3),\"\")","v":""},{"$f":"IFERROR(INDEX(tblData[],MATCH(E$5+$B10&Εμφάνιση_ονόματος,tblData[ΗΜΕΡΟΜΗΝΙΑ ΚΑΙ ΩΡΑ]&tblData[ΠΟΙΟΣ],0),3),\"\")","v":""},{"$f":"IFERROR(INDEX(tblData[],MATCH(F$5+$B10&Εμφάνιση_ονόματος,tblData[ΗΜΕΡΟΜΗΝΙΑ ΚΑΙ ΩΡΑ]&tblData[ΠΟΙΟΣ],0),3),\"\")","v":""},{"$f":"IFERROR(INDEX(tblData[],MATCH(G$5+$B10&Εμφάνιση_ονόματος,tblData[ΗΜΕΡΟΜΗΝΙΑ ΚΑΙ ΩΡΑ]&tblData[ΠΟΙΟΣ],0),3),\"\")","v":""},{"$f":"IFERROR(INDEX(tblData[],MATCH(H$5+$B10&Εμφάνιση_ονόματος,tblData[ΗΜΕΡΟΜΗΝΙΑ ΚΑΙ ΩΡΑ]&tblData[ΠΟΙΟΣ],0),3),\"\")","v":""},{"$f":"IFERROR(INDEX(tblData[],MATCH(I$5+$B10&Εμφάνιση_ονόματος,tblData[ΗΜΕΡΟΜΗΝΙΑ ΚΑΙ ΩΡΑ]&tblData[ΠΟΙΟΣ],0),3),\"\")","v":""}]
[null,"10:00:00",{"$f":"IFERROR(INDEX(tblData[],MATCH(C$5+$B11&Εμφάνιση_ονόματος,tblData[ΗΜΕΡΟΜΗΝΙΑ ΚΑΙ ΩΡΑ]&tblData[ΠΟΙΟΣ],0),3),\"\")","v":""},{"$f":"IFERROR(INDEX(tblData[],MATCH(D$5+$B11&Εμφάνιση_ονόματος,tblData[ΗΜΕΡΟΜΗΝΙΑ ΚΑΙ ΩΡΑ]&tblData[ΠΟΙΟΣ],0),3),\"\")","v":""},{"$f":"IFERROR(INDEX(tblData[],MATCH(E$5+$B11&Εμφάνιση_ονόματος,tblData[ΗΜΕΡΟΜΗΝΙΑ ΚΑΙ ΩΡΑ]&tblData[ΠΟΙΟΣ],0),3),\"\")","v":"Παρέλαση στο κέντρο"},{"$f":"IFERROR(INDEX(tblData[],MATCH(F$5+$B11&Εμφάνιση_ονόματος,tblData[ΗΜΕΡΟΜΗΝΙΑ ΚΑΙ ΩΡΑ]&tblData[ΠΟΙΟΣ],0),3),\"\")","v":""},{"$f":"IFERROR(INDEX(tblData[],MATCH(G$5+$B11&Εμφάνιση_ονόματος,tblData[ΗΜΕΡΟΜΗΝΙΑ ΚΑΙ ΩΡΑ]&tblData[ΠΟΙΟΣ],0),3),\"\")","v":""},{"$f":"IFERROR(INDEX(tblData[],MATCH(H$5+$B11&Εμφάνιση_ονόματος,tblData[ΗΜΕΡΟΜΗΝΙΑ ΚΑΙ ΩΡΑ]&tblData[ΠΟΙΟΣ],0),3),\"\")","v":""},{"$f":"IFERROR(INDEX(tblData[],MATCH(I$5+$B11&Εμφάνιση_ονόματος,tblData[ΗΜΕΡΟΜΗΝΙΑ ΚΑΙ ΩΡΑ]&tblData[ΠΟΙΟΣ],0),3),\"\")","v":""}]
[null,"11:00:00",{"$f":"IFERROR(INDEX(tblData[],MATCH(C$5+$B12&Εμφάνιση_ονόματος,tblData[ΗΜΕΡΟΜΗΝΙΑ ΚΑΙ ΩΡΑ]&tblData[ΠΟΙΟΣ],0),3),\"\")","v":""},{"$f":"IFERROR(INDEX(tblData[],MATCH(D$5+$B12&Εμφάνιση_ονόματος,tblData[ΗΜΕΡΟΜΗΝΙΑ ΚΑΙ ΩΡΑ]&tblData[ΠΟΙΟΣ],0),3),\"\")","v":""},{"$f":"IFERROR(INDEX(tblData[],MATCH(E$5+$B12&Εμφάνιση_ονόματος,tblData[ΗΜΕΡΟΜΗΝΙΑ ΚΑΙ ΩΡΑ]&tblData[ΠΟΙΟΣ],0),3),\"\")","v":""},{"$f":"IFERROR(INDEX(tblData[],MATCH(F$5+$B12&Εμφάνιση_ονόματος,tblData[ΗΜΕΡΟΜΗΝΙΑ ΚΑΙ ΩΡΑ]&tblData[ΠΟΙΟΣ],0),3),\"\")","v":""},{"$f":"IFERROR(INDEX(tblData[],MATCH(G$5+$B12&Εμφάνιση_ονόματος,tblData[ΗΜΕΡΟΜΗΝΙΑ ΚΑΙ ΩΡΑ]&tblData[ΠΟΙΟΣ],0),3),\"\")","v":"Μπάρμπεκιου με την οικογένεια"},{"$f":"IFERROR(INDEX(tblData[],MATCH(H$5+$B12&Εμφάνιση_ονόματος,tblData[ΗΜΕΡΟΜΗΝΙΑ ΚΑΙ ΩΡΑ]&tblData[ΠΟΙΟΣ],0),3),\"\")","v":""},{"$f":"IFERROR(INDEX(tblData[],MATCH(I$5+$B12&Εμφάνιση_ονόματος,tblData[ΗΜΕΡΟΜΗΝΙΑ ΚΑΙ ΩΡΑ]&tblData[ΠΟΙΟΣ],0),3),\"\")","v":""}]
[null,"12:00:00",{"$f":"IFERROR(INDEX(tblData[],MATCH(C$5+$B13&Εμφάνιση_ονόματος,tblData[ΗΜΕΡΟΜΗΝΙΑ ΚΑΙ ΩΡΑ]&tblData[ΠΟΙΟΣ],0),3),\"\")","v":""},{"$f":"IFERROR(INDEX(tblData[],MATCH(D$5+$B13&Εμφάνιση_ονόματος,tblData[ΗΜΕΡΟΜΗΝΙΑ ΚΑΙ ΩΡΑ]&tblData[ΠΟΙΟΣ],0),3),\"\")","v":""},{"$f":"IFERROR(INDEX(tblData[],MATCH(E$5+$B13&Εμφάνιση_ονόματος,tblData[ΗΜΕΡΟΜΗΝΙΑ ΚΑΙ ΩΡΑ]&tblData[ΠΟΙΟΣ],0),3),\"\")","v":""},{"$f":"IFERROR(INDEX(tblData[],MATCH(F$5+$B13&Εμφάνιση_ονόματος,tblData[ΗΜΕΡΟΜΗΝΙΑ ΚΑΙ ΩΡΑ]&tblData[ΠΟΙΟΣ],0),3),\"\")","v":""},{"$f":"IFERROR(INDEX(tblData[],MATCH(G$5+$B13&Εμφάνιση_ονόματος,tblData[ΗΜΕΡΟΜΗΝΙΑ ΚΑΙ ΩΡΑ]&tblData[ΠΟΙΟΣ],0),3),\"\")","v":""},{"$f":"IFERROR(INDEX(tblData[],MATCH(H$5+$B13&Εμφάνιση_ονόματος,tblData[ΗΜΕΡΟΜΗΝΙΑ ΚΑΙ ΩΡΑ]&tblData[ΠΟΙΟΣ],0),3),\"\")","v":""},{"$f":"IFERROR(INDEX(tblData[],MATCH(I$5+$B13&Εμφάνιση_ονόματος,tblData[ΗΜΕΡΟΜΗΝΙΑ ΚΑΙ ΩΡΑ]&tblData[ΠΟΙΟΣ],0),3),\"\")","v":""}]
[null,"13:00:00",{"$f":"IFERROR(INDEX(tblData[],MATCH(C$5+$B14&Εμφάνιση_ονόματος,tblData[ΗΜΕΡΟΜΗΝΙΑ ΚΑΙ ΩΡΑ]&tblData[ΠΟΙΟΣ],0),3),\"\")","v":""},{"$f":"IFERROR(INDEX(tblData[],MATCH(D$5+$B14&Εμφάνιση_ονόματος,tblData[ΗΜΕΡΟΜΗΝΙΑ ΚΑΙ ΩΡΑ]&tblData[ΠΟΙΟΣ],0),3),\"\")","v":""},{"$f":"IFERROR(INDEX(tblData[],MATCH(E$5+$B14&Εμφάνιση_ονόματος,tblData[ΗΜΕΡΟΜΗΝΙΑ ΚΑΙ ΩΡΑ]&tblData[ΠΟΙΟΣ],0),3),\"\")","v":""},{"$f":"IFERROR(INDEX(tblData[],MATCH(F$5+$B14&Εμφάνιση_ονόματος,tblData[ΗΜΕΡΟΜΗΝΙΑ ΚΑΙ ΩΡΑ]&tblData[ΠΟΙΟΣ],0),3),\"\")","v":""},{"$f":"IFERROR(INDEX(tblData[],MATCH(G$5+$B14&Εμφάνιση_ονόματος,tblData[ΗΜΕΡΟΜΗΝΙΑ ΚΑΙ ΩΡΑ]&tblData[ΠΟΙΟΣ],0),3),\"\")","v":""},{"$f":"IFERROR(INDEX(tblData[],MATCH(H$5+$B14&Εμφάνιση_ονόματος,tblData[ΗΜΕΡΟΜΗΝΙΑ ΚΑΙ ΩΡΑ]&tblData[ΠΟΙΟΣ],0),3),\"\")","v":""},{"$f":"IFERROR(INDEX(tblData[],MATCH(I$5+$B14&Εμφάνιση_ονόματος,tblData[ΗΜΕΡΟΜΗΝΙΑ ΚΑΙ ΩΡΑ]&tblData[ΠΟΙΟΣ],0),3),\"\")","v":""}]
[null,"14:00:00",{"$f":"IFERROR(INDEX(tblData[],MATCH(C$5+$B15&Εμφάνιση_ονόματος,tblData[ΗΜΕΡΟΜΗΝΙΑ ΚΑΙ ΩΡΑ]&tblData[ΠΟΙΟΣ],0),3),\"\")","v":""},{"$f":"IFERROR(INDEX(tblData[],MATCH(D$5+$B15&Εμφάνιση_ονόματος,tblData[ΗΜΕΡΟΜΗΝΙΑ ΚΑΙ ΩΡΑ]&tblData[ΠΟΙΟΣ],0),3),\"\")","v":""},{"$f":"IFERROR(INDEX(tblData[],MATCH(E$5+$B15&Εμφάνιση_ονόματος,tblData[ΗΜΕΡΟΜΗΝΙΑ ΚΑΙ ΩΡΑ]&tblData[ΠΟΙΟΣ],0),3),\"\")","v":""},{"$f":"IFERROR(INDEX(tblData[],MATCH(F$5+$B15&Εμφάνιση_ονόματος,tblData[ΗΜΕΡΟΜΗΝΙΑ ΚΑΙ ΩΡΑ]&tblData[ΠΟΙΟΣ],0),3),\"\")","v":""},{"$f":"IFERROR(INDEX(tblData[],MATCH(G$5+$B15&Εμφάνιση_ονόματος,tblData[ΗΜΕΡΟΜΗΝΙΑ ΚΑΙ ΩΡΑ]&tblData[ΠΟΙΟΣ],0),3),\"\")","v":""},{"$f":"IFERROR(INDEX(tblData[],MATCH(H$5+$B15&Εμφάνιση_ονόματος,tblData[ΗΜΕΡΟΜΗΝΙΑ ΚΑΙ ΩΡΑ]&tblData[ΠΟΙΟΣ],0),3),\"\")","v":""},{"$f":"IFERROR(INDEX(tblData[],MATCH(I$5+$B15&Εμφάνιση_ονόματος,tblData[ΗΜΕΡΟΜΗΝΙΑ ΚΑΙ ΩΡΑ]&tblData[ΠΟΙΟΣ],0),3),\"\")","v":""}]
[null,"15:00:00",{"$f":"IFERROR(INDEX(tblData[],MATCH(C$5+$B16&Εμφάνιση_ονόματος,tblData[ΗΜΕΡΟΜΗΝΙΑ ΚΑΙ ΩΡΑ]&tblData[ΠΟΙΟΣ],0),3),\"\")","v":""},{"$f":"IFERROR(INDEX(tblData[],MATCH(D$5+$B16&Εμφάνιση_ονόματος,tblData[ΗΜΕΡΟΜΗΝΙΑ ΚΑΙ ΩΡΑ]&tblData[ΠΟΙΟΣ],0),3),\"\")","v":""},{"$f":"IFERROR(INDEX(tblData[],MATCH(E$5+$B16&Εμφάνιση_ονόματος,tblData[ΗΜΕΡΟΜΗΝΙΑ ΚΑΙ ΩΡΑ]&tblData[ΠΟΙΟΣ],0),3),\"\")","v":""},{"$f":"IFERROR(INDEX(tblData[],MATCH(F$5+$B16&Εμφάνιση_ονόματος,tblData[ΗΜΕΡΟΜΗΝΙΑ ΚΑΙ ΩΡΑ]&tblData[ΠΟΙΟΣ],0),3),\"\")","v":""},{"$f":"IFERROR(INDEX(tblData[],MATCH(G$5+$B16&Εμφάνιση_ονόματος,tblData[ΗΜΕΡΟΜΗΝΙΑ ΚΑΙ ΩΡΑ]&tblData[ΠΟΙΟΣ],0),3),\"\")","v":""},{"$f":"IFERROR(INDEX(tblData[],MATCH(H$5+$B16&Εμφάνιση_ονόματος,tblData[ΗΜΕΡΟΜΗΝΙΑ ΚΑΙ ΩΡΑ]&tblData[ΠΟΙΟΣ],0),3),\"\")","v":""},{"$f":"IFERROR(INDEX(tblData[],MATCH(I$5+$B16&Εμφάνιση_ονόματος,tblData[ΗΜΕΡΟΜΗΝΙΑ ΚΑΙ ΩΡΑ]&tblData[ΠΟΙΟΣ],0),3),\"\")","v":""}]
[null,"16:00:00",{"$f":"IFERROR(INDEX(tblData[],MATCH(C$5+$B17&Εμφάνιση_ονόματος,tblData[ΗΜΕΡΟΜΗΝΙΑ ΚΑΙ ΩΡΑ]&tblData[ΠΟΙΟΣ],0),3),\"\")","v":""},{"$f":"IFERROR(INDEX(tblData[],MATCH(D$5+$B17&Εμφάνιση_ονόματος,tblData[ΗΜΕΡΟΜΗΝΙΑ ΚΑΙ ΩΡΑ]&tblData[ΠΟΙΟΣ],0),3),\"\")","v":"Αναχώρηση για το εξοχικό"},{"$f":"IFERROR(INDEX(tblData[],MATCH(E$5+$B17&Εμφάνιση_ονόματος,tblData[ΗΜΕΡΟΜΗΝΙΑ ΚΑΙ ΩΡΑ]&tblData[ΠΟΙΟΣ],0),3),\"\")","v":""},{"$f":"IFERROR(INDEX(tblData[],MATCH(F$5+$B17&Εμφάνιση_ονόματος,tblData[ΗΜΕΡΟΜΗΝΙΑ ΚΑΙ ΩΡΑ]&tblData[ΠΟΙΟΣ],0),3),\"\")","v":""},{"$f":"IFERROR(INDEX(tblData[],MATCH(G$5+$B17&Εμφάνιση_ονόματος,tblData[ΗΜΕΡΟΜΗΝΙΑ ΚΑΙ ΩΡΑ]&tblData[ΠΟΙΟΣ],0),3),\"\")","v":""},{"$f":"IFERROR(INDEX(tblData[],MATCH(H$5+$B17&Εμφάνιση_ονόματος,tblData[ΗΜΕΡΟΜΗΝΙΑ ΚΑΙ ΩΡΑ]&tblData[ΠΟΙΟΣ],0),3),\"\")","v":""},{"$f":"IFERROR(INDEX(tblData[],MATCH(I$5+$B17&Εμφάνιση_ονόματος,tblData[ΗΜΕΡΟΜΗΝΙΑ ΚΑΙ ΩΡΑ]&tblData[ΠΟΙΟΣ],0),3),\"\")","v":""}]
[null,"17:00:00",{"$f":"IFERROR(INDEX(tblData[],MATCH(C$5+$B18&Εμφάνιση_ονόματος,tblData[ΗΜΕΡΟΜΗΝΙΑ ΚΑΙ ΩΡΑ]&tblData[ΠΟΙΟΣ],0),3),\"\")","v":""},{"$f":"IFERROR(INDEX(tblData[],MATCH(D$5+$B18&Εμφάνιση_ονόματος,tblData[ΗΜΕΡΟΜΗΝΙΑ ΚΑΙ ΩΡΑ]&tblData[ΠΟΙΟΣ],0),3),\"\")","v":""},{"$f":"IFERROR(INDEX(tblData[],MATCH(E$5+$B18&Εμφάνιση_ονόματος,tblData[ΗΜΕΡΟΜΗΝΙΑ ΚΑΙ ΩΡΑ]&tblData[ΠΟΙΟΣ],0),3),\"\")","v":""},{"$f":"IFERROR(INDEX(tblData[],MATCH(F$5+$B18&Εμφάνιση_ονόματος,tblData[ΗΜΕΡΟΜΗΝΙΑ ΚΑΙ ΩΡΑ]&tblData[ΠΟΙΟΣ],0),3),\"\")","v":""},{"$f":"IFERROR(INDEX(tblData[],MATCH(G$5+$B18&Εμφάνιση_ονόματος,tblData[ΗΜΕΡΟΜΗΝΙΑ ΚΑΙ ΩΡΑ]&tblData[ΠΟΙΟΣ],0),3),\"\")","v":""},{"$f":"IFERROR(INDEX(tblData[],MATCH(H$5+$B18&Εμφάνιση_ονόματος,tblData[ΗΜΕΡΟΜΗΝΙΑ ΚΑΙ ΩΡΑ]&tblData[ΠΟΙΟΣ],0),3),\"\")","v":""},{"$f":"IFERROR(INDEX(tblData[],MATCH(I$5+$B18&Εμφάνιση_ονόματος,tblData[ΗΜΕΡΟΜΗΝΙΑ ΚΑΙ ΩΡΑ]&tblData[ΠΟΙΟΣ],0),3),\"\")","v":"Επιστροφή στο σπίτι"}]
[null,"18:00:00",{"$f":"IFERROR(INDEX(tblData[],MATCH(C$5+$B19&Εμφάνιση_ονόματος,tblData[ΗΜΕΡΟΜΗΝΙΑ ΚΑΙ ΩΡΑ]&tblData[ΠΟΙΟΣ],0),3),\"\")","v":"Λήψη φαρμάκου"},{"$f":"IFERROR(INDEX(tblData[],MATCH(D$5+$B19&Εμφάνιση_ονόματος,tblData[ΗΜΕΡΟΜΗΝΙΑ ΚΑΙ ΩΡΑ]&tblData[ΠΟΙΟΣ],0),3),\"\")","v":""},{"$f":"IFERROR(INDEX(tblData[],MATCH(E$5+$B19&Εμφάνιση_ονόματος,tblData[ΗΜΕΡΟΜΗΝΙΑ ΚΑΙ ΩΡΑ]&tblData[ΠΟΙΟΣ],0),3),\"\")","v":""},{"$f":"IFERROR(INDEX(tblData[],MATCH(F$5+$B19&Εμφάνιση_ονόματος,tblData[ΗΜΕΡΟΜΗΝΙΑ ΚΑΙ ΩΡΑ]&tblData[ΠΟΙΟΣ],0),3),\"\")","v":""},{"$f":"IFERROR(INDEX(tblData[],MATCH(G$5+$B19&Εμφάνιση_ονόματος,tblData[ΗΜΕΡΟΜΗΝΙΑ ΚΑΙ ΩΡΑ]&tblData[ΠΟΙΟΣ],0),3),\"\")","v":""},{"$f":"IFERROR(INDEX(tblData[],MATCH(H$5+$B19&Εμφάνιση_ονόματος,tblData[ΗΜΕΡΟΜΗΝΙΑ ΚΑΙ ΩΡΑ]&tblData[ΠΟΙΟΣ],0),3),\"\")","v":""},{"$f":"IFERROR(INDEX(tblData[],MATCH(I$5+$B19&Εμφάνιση_ονόματος,tblData[ΗΜΕΡΟΜΗΝΙΑ ΚΑΙ ΩΡΑ]&tblData[ΠΟΙΟΣ],0),3),\"\")","v":""}]
[null,"19:00:00",{"$f":"IFERROR(INDEX(tblData[],MATCH(C$5+$B20&Εμφάνιση_ονόματος,tblData[ΗΜΕΡΟΜΗΝΙΑ ΚΑΙ ΩΡΑ]&tblData[ΠΟΙΟΣ],0),3),\"\")","v":""},{"$f":"IFERROR(INDEX(tblData[],MATCH(D$5+$B20&Εμφάνιση_ονόματος,tblData[ΗΜΕΡΟΜΗΝΙΑ ΚΑΙ ΩΡΑ]&tblData[ΠΟΙΟΣ],0),3),\"\")","v":""},{"$f":"IFERROR(INDEX(tblData[],MATCH(E$5+$B20&Εμφάνιση_ονόματος,tblData[ΗΜΕΡΟΜΗΝΙΑ ΚΑΙ ΩΡΑ]&tblData[ΠΟΙΟΣ],0),3),\"\")","v":""},{"$f":"IFERROR(INDEX(tblData[],MATCH(F$5+$B20&Εμφάνιση_ονόματος,tblData[ΗΜΕΡΟΜΗΝΙΑ ΚΑΙ ΩΡΑ]&tblData[ΠΟΙΟΣ],0),3),\"\")","v":""},{"$f":"IFERROR(INDEX(tblData[],MATCH(G$5+$B20&Εμφάνιση_ονόματος,tblData[ΗΜΕΡΟΜΗΝΙΑ ΚΑΙ ΩΡΑ]&tblData[ΠΟΙΟΣ],0),3),\"\")","v":""},{"$f":"IFERROR(INDEX(tblData[],MATCH(H$5+$B20&Εμφάνιση_ονόματος,tblData[ΗΜΕΡΟΜΗΝΙΑ ΚΑΙ ΩΡΑ]&tblData[ΠΟΙΟΣ],0),3),\"\")","v":""},{"$f":"IFERROR(INDEX(tblData[],MATCH(I$5+$B20&Εμφάνιση_ονόματος,tblData[ΗΜΕΡΟΜΗΝΙΑ ΚΑΙ ΩΡΑ]&tblData[ΠΟΙΟΣ],0),3),\"\")","v":""}]
[null,"20:00:00",{"$f":"IFERROR(INDEX(tblData[],MATCH(C$5+$B21&Εμφάνιση_ονόματος,tblData[ΗΜΕΡΟΜΗΝΙΑ ΚΑΙ ΩΡΑ]&tblData[ΠΟΙΟΣ],0),3),\"\")","v":"Ταινία με την οικογένεια"},{"$f":"IFERROR(INDEX(tblData[],MATCH(D$5+$B21&Εμφάνιση_ονόματος,tblData[ΗΜΕΡΟΜΗΝΙΑ ΚΑΙ ΩΡΑ]&tblData[ΠΟΙΟΣ],0),3),\"\")","v":""},{"$f":"IFERROR(INDEX(tblData[],MATCH(E$5+$B21&Εμφάνιση_ονόματος,tblData[ΗΜΕΡΟΜΗΝΙΑ ΚΑΙ ΩΡΑ]&tblData[ΠΟΙΟΣ],0),3),\"\")","v":""},{"$f":"IFERROR(INDEX(tblData[],MATCH(F$5+$B21&Εμφάνιση_ονόματος,tblData[ΗΜΕΡΟΜΗΝΙΑ ΚΑΙ ΩΡΑ]&tblData[ΠΟΙΟΣ],0),3),\"\")","v":"Πυροτεχνήματα"},{"$f":"IFERROR(INDEX(tblData[],MATCH(G$5+$B21&Εμφάνιση_ονόματος,tblData[ΗΜΕΡΟΜΗΝΙΑ ΚΑΙ ΩΡΑ]&tblData[ΠΟΙΟΣ],0),3),\"\")","v":""},{"$f":"IFERROR(INDEX(tblData[],MATCH(H$5+$B21&Εμφάνιση_ονόματος,tblData[ΗΜΕΡΟΜΗΝΙΑ ΚΑΙ ΩΡΑ]&tblData[ΠΟΙΟΣ],0),3),\"\")","v":""},{"$f":"IFERROR(INDEX(tblData[],MATCH(I$5+$B21&Εμφάνιση_ονόματος,tblData[ΗΜΕΡΟΜΗΝΙΑ ΚΑΙ ΩΡΑ]&tblData[ΠΟΙΟΣ],0),3),\"\")","v":""}]
[null,"21:00:00",{"$f":"IFERROR(INDEX(tblData[],MATCH(C$5+$B22&Εμφάνιση_ονόματος,tblData[ΗΜΕΡΟΜΗΝΙΑ ΚΑΙ ΩΡΑ]&tblData[ΠΟΙΟΣ],0),3),\"\")","v":""},{"$f":"IFERROR(INDEX(tblData[],MATCH(D$5+$B22&Εμφάνιση_ονόματος,tblData[ΗΜΕΡΟΜΗΝΙΑ ΚΑΙ ΩΡΑ]&tblData[ΠΟΙΟΣ],0),3),\"\")","v":""},{"$f":"IFERROR(INDEX(tblData[],MATCH(E$5+$B22&Εμφάνιση_ονόματος,tblData[ΗΜΕΡΟΜΗΝΙΑ ΚΑΙ ΩΡΑ]&tblData[ΠΟΙΟΣ],0),3),\"\")","v":""},{"$f":"IFERROR(INDEX(tblData[],MATCH(F$5+$B22&Εμφάνιση_ονόματος,tblData[ΗΜΕΡΟΜΗΝΙΑ ΚΑΙ ΩΡΑ]&tblData[ΠΟΙΟΣ],0),3),\"\")","v":""},{"$f":"IFERROR(INDEX(tblData[],MATCH(G$5+$B22&Εμφάνιση_ονόματος,tblData[ΗΜΕΡΟΜΗΝΙΑ ΚΑΙ ΩΡΑ]&tblData[ΠΟΙΟΣ],0),3),\"\")","v":""},{"$f":"IFERROR(INDEX(tblData[],MATCH(H$5+$B22&Εμφάνιση_ονόματος,tblData[ΗΜΕΡΟΜΗΝΙΑ ΚΑΙ ΩΡΑ]&tblData[ΠΟΙΟΣ],0),3),\"\")","v":""},{"$f":"IFERROR(INDEX(tblData[],MATCH(I$5+$B22&Εμφάνιση_ονόματος,tblData[ΗΜΕΡΟΜΗΝΙΑ ΚΑΙ ΩΡΑ]&tblData[ΠΟΙΟΣ],0),3),\"\")","v":""}]
[null,"22:00:00",{"$f":"IFERROR(INDEX(tblData[],MATCH(C$5+$B23&Εμφάνιση_ονόματος,tblData[ΗΜΕΡΟΜΗΝΙΑ ΚΑΙ ΩΡΑ]&tblData[ΠΟΙΟΣ],0),3),\"\")","v":""},{"$f":"IFERROR(INDEX(tblData[],MATCH(D$5+$B23&Εμφάνιση_ονόματος,tblData[ΗΜΕΡΟΜΗΝΙΑ ΚΑΙ ΩΡΑ]&tblData[ΠΟΙΟΣ],0),3),\"\")","v":""},{"$f":"IFERROR(INDEX(tblData[],MATCH(E$5+$B23&Εμφάνιση_ονόματος,tblData[ΗΜΕΡΟΜΗΝΙΑ ΚΑΙ ΩΡΑ]&tblData[ΠΟΙΟΣ],0),3),\"\")","v":""},{"$f":"IFERROR(INDEX(tblData[],MATCH(F$5+$B23&Εμφάνιση_ονόματος,tblData[ΗΜΕΡΟΜΗΝΙΑ ΚΑΙ ΩΡΑ]&tblData[ΠΟΙΟΣ],0),3),\"\")","v":""},{"$f":"IFERROR(INDEX(tblData[],MATCH(G$5+$B23&Εμφάνιση_ονόματος,tblData[ΗΜΕΡΟΜΗΝΙΑ ΚΑΙ ΩΡΑ]&tblData[ΠΟΙΟΣ],0),3),\"\")","v":""},{"$f":"IFERROR(INDEX(tblData[],MATCH(H$5+$B23&Εμφάνιση_ονόματος,tblData[ΗΜΕΡΟΜΗΝΙΑ ΚΑΙ ΩΡΑ]&tblData[ΠΟΙΟΣ],0),3),\"\")","v":""},{"$f":"IFERROR(INDEX(tblData[],MATCH(I$5+$B23&Εμφάνιση_ονόματος,tblData[ΗΜΕΡΟΜΗΝΙΑ ΚΑΙ ΩΡΑ]&tblData[ΠΟΙΟΣ],0),3),\"\")","v":""}]

{"sheet":"Καταχώρηση δεδομένων","index":1,"n_rows":14,"n_cols":4,"rows_kept":14}
[null,"ΚΑΤΑΧΩΡΗΣΗ ΔΕΔΟΜΕΝΩΝ"]
[]
[null,"ΗΜΕΡΟΜΗΝΙΑ ΚΑΙ ΩΡΑ","ΠΟΙΟΣ","ΕΡΓΑΣΙΑ"]
[null,"2012-07-02T08:00:00","Άννα","Ραντεβού με γιατρό"]
[null,"2012-07-02T18:00:00","Πέτρος","Λήψη φαρμάκου"]
[null,"2012-07-02T18:30:00","Πέτρος","Δείπνο με τη Μαρία"]
[null,"2012-07-02T20:00:00","Πέτρος","Ταινία με την οικογένεια"]
[null,"2012-07-03T16:00:00","Πέτρος","Αναχώρηση για το εξοχικό"]
[null,"2012-07-04T10:00:00","Πέτρος","Παρέλαση στο κέντρο"]
[null,"2012-07-05T20:00:00","Πέτρος","Πυροτεχνήματα"]
[null,"2012-07-06T11:00:00","Πέτρος","Μπάρμπεκιου με την οικογένεια"]
[null,"2012-07-07","Πέτρος","Πικ-νικ κοινότητας"]
[null,"2012-07-08T17:00:00","Πέτρος","Επιστροφή στο σπίτι"]
[null,"2012-07-02T10:00:00","Άννα","Μαθήματα πιάνου"]

{"sheet":"Name Lookup","index":2,"n_rows":132,"n_cols":2,"rows_kept":132,"hidden":true,"merged":[[0,0,0,1]]}
["This sheet populates the drop down list of names on the Schedule sheet in cell H3.  Any changes made to this sheet could result in an error."]
["UNIQUE NAME","ROW NUMBER"]
[{"$f":"IFERROR(INDEX(Πεδίο_ποιος,MATCH(0,COUNTIF($A$2:A2,Πεδίο_ποιος),0)),\"\")","v":"Άννα"},{"$f":"IF(A3=\"\",\"\",ROW())","v":3}]
[{"$f":"IFERROR(INDEX(Πεδίο_ποιος,MATCH(0,COUNTIF($A$2:A3,Πεδίο_ποιος),0)),\"\")","v":"Πέτρος"},{"$f":"IF(A4=\"\",\"\",ROW())","v":4}]
[{"$f":"IFERROR(INDEX(Πεδίο_ποιος,MATCH(0,COUNTIF($A$2:A4,Πεδίο_ποιος),0)),\"\")","v":""},""]
[{"$f":"IFERROR(INDEX(Πεδίο_ποιος,MATCH(0,COUNTIF($A$2:A5,Πεδίο_ποιος),0)),\"\")","v":""},""]
[{"$f":"IFERROR(INDEX(Πεδίο_ποιος,MATCH(0,COUNTIF($A$2:A6,Πεδίο_ποιος),0)),\"\")","v":""},""]
[{"$f":"IFERROR(INDEX(Πεδίο_ποιος,MATCH(0,COUNTIF($A$2:A7,Πεδίο_ποιος),0)),\"\")","v":""},""]
[{"$f":"IFERROR(INDEX(Πεδίο_ποιος,MATCH(0,COUNTIF($A$2:A8,Πεδίο_ποιος),0)),\"\")","v":""},""]
[{"$f":"IFERROR(INDEX(Πεδίο_ποιος,MATCH(0,COUNTIF($A$2:A9,Πεδίο_ποιος),0)),\"\")","v":""},""]
[{"$f":"IFERROR(INDEX(Πεδίο_ποιος,MATCH(0,COUNTIF($A$2:A10,Πεδίο_ποιος),0)),\"\")","v":""},""]
[{"$f":"IFERROR(INDEX(Πεδίο_ποιος,MATCH(0,COUNTIF($A$2:A11,Πεδίο_ποιος),0)),\"\")","v":""},""]
[{"$f":"IFERROR(INDEX(Πεδίο_ποιος,MATCH(0,COUNTIF($A$2:A12,Πεδίο_ποιος),0)),\"\")","v":""},""]
[{"$f":"IFERROR(INDEX(Πεδίο_ποιος,MATCH(0,COUNTIF($A$2:A13,Πεδίο_ποιος),0)),\"\")","v":""},""]
[{"$f":"IFERROR(INDEX(Πεδίο_ποιος,MATCH(0,COUNTIF($A$2:A14,Πεδίο_ποιος),0)),\"\")","v":""},""]
[{"$f":"IFERROR(INDEX(Πεδίο_ποιος,MATCH(0,COUNTIF($A$2:A15,Πεδίο_ποιος),0)),\"\")","v":""},""]
[{"$f":"IFERROR(INDEX(Πεδίο_ποιος,MATCH(0,COUNTIF($A$2:A16,Πεδίο_ποιος),0)),\"\")","v":""},""]
[{"$f":"IFERROR(INDEX(Πεδίο_ποιος,MATCH(0,COUNTIF($A$2:A17,Πεδίο_ποιος),0)),\"\")","v":""},""]
[{"$f":"IFERROR(INDEX(Πεδίο_ποιος,MATCH(0,COUNTIF($A$2:A18,Πεδίο_ποιος),0)),\"\")","v":""},""]
[{"$f":"IFERROR(INDEX(Πεδίο_ποιος,MATCH(0,COUNTIF($A$2:A19,Πεδίο_ποιος),0)),\"\")","v":""},""]
[{"$f":"IFERROR(INDEX(Πεδίο_ποιος,MATCH(0,COUNTIF($A$2:A20,Πεδίο_ποιος),0)),\"\")","v":""},""]
[{"$f":"IFERROR(INDEX(Πεδίο_ποιος,MATCH(0,COUNTIF($A$2:A21,Πεδίο_ποιος),0)),\"\")","v":""},""]
[{"$f":"IFERROR(INDEX(Πεδίο_ποιος,MATCH(0,COUNTIF($A$2:A22,Πεδίο_ποιος),0)),\"\")","v":""},""]
[{"$f":"IFERROR(INDEX(Πεδίο_ποιος,MATCH(0,COUNTIF($A$2:A23,Πεδίο_ποιος),0)),\"\")","v":""},""]
[{"$f":"IFERROR(INDEX(Πεδίο_ποιος,MATCH(0,COUNTIF($A$2:A24,Πεδίο_ποιος),0)),\"\")","v":""},""]
[{"$f":"IFERROR(INDEX(Πεδίο_ποιος,MATCH(0,COUNTIF($A$2:A25,Πεδίο_ποιος),0)),\"\")","v":""},""]
[{"$f":"IFERROR(INDEX(Πεδίο_ποιος,MATCH(0,COUNTIF($A$2:A26,Πεδίο_ποιος),0)),\"\")","v":""},""]
[{"$f":"IFERROR(INDEX(Πεδίο_ποιος,MATCH(0,COUNTIF($A$2:A27,Πεδίο_ποιος),0)),\"\")","v":""},""]
[{"$f":"IFERROR(INDEX(Πεδίο_ποιος,MATCH(0,COUNTIF($A$2:A28,Πεδίο_ποιος),0)),\"\")","v":""},""]
[{"$f":"IFERROR(INDEX(Πεδίο_ποιος,MATCH(0,COUNTIF($A$2:A29,Πεδίο_ποιος),0)),\"\")","v":""},""]
[{"$f":"IFERROR(INDEX(Πεδίο_ποιος,MATCH(0,COUNTIF($A$2:A30,Πεδίο_ποιος),0)),\"\")","v":""},""]
[{"$f":"IFERROR(INDEX(Πεδίο_ποιος,MATCH(0,COUNTIF($A$2:A31,Πεδίο_ποιος),0)),\"\")","v":""},""]
[{"$f":"IFERROR(INDEX(Πεδίο_ποιος,MATCH(0,COUNTIF($A$2:A32,Πεδίο_ποιος),0)),\"\")","v":""},""]
[{"$f":"IFERROR(INDEX(Πεδίο_ποιος,MATCH(0,COUNTIF($A$2:A33,Πεδίο_ποιος),0)),\"\")","v":""},""]
[{"$f":"IFERROR(INDEX(Πεδίο_ποιος,MATCH(0,COUNTIF($A$2:A34,Πεδίο_ποιος),0)),\"\")","v":""},""]
[{"$f":"IFERROR(INDEX(Πεδίο_ποιος,MATCH(0,COUNTIF($A$2:A35,Πεδίο_ποιος),0)),\"\")","v":""},""]
[{"$f":"IFERROR(INDEX(Πεδίο_ποιος,MATCH(0,COUNTIF($A$2:A36,Πεδίο_ποιος),0)),\"\")","v":""},""]
[{"$f":"IFERROR(INDEX(Πεδίο_ποιος,MATCH(0,COUNTIF($A$2:A37,Πεδίο_ποιος),0)),\"\")","v":""},""]
[{"$f":"IFERROR(INDEX(Πεδίο_ποιος,MATCH(0,COUNTIF($A$2:A38,Πεδίο_ποιος),0)),\"\")","v":""},""]
[{"$f":"IFERROR(INDEX(Πεδίο_ποιος,MATCH(0,COUNTIF($A$2:A39,Πεδίο_ποιος),0)),\"\")","v":""},""]
[{"$f":"IFERROR(INDEX(Πεδίο_ποιος,MATCH(0,COUNTIF($A$2:A40,Πεδίο_ποιος),0)),\"\")","v":""},""]
[{"$f":"IFERROR(INDEX(Πεδίο_ποιος,MATCH(0,COUNTIF($A$2:A41,Πεδίο_ποιος),0)),\"\")","v":""},""]
[{"$f":"IFERROR(INDEX(Πεδίο_ποιος,MATCH(0,COUNTIF($A$2:A42,Πεδίο_ποιος),0)),\"\")","v":""},""]
[{"$f":"IFERROR(INDEX(Πεδίο_ποιος,MATCH(0,COUNTIF($A$2:A43,Πεδίο_ποιος),0)),\"\")","v":""},""]
[{"$f":"IFERROR(INDEX(Πεδίο_ποιος,MATCH(0,COUNTIF($A$2:A44,Πεδίο_ποιος),0)),\"\")","v":""},""]
[{"$f":"IFERROR(INDEX(Πεδίο_ποιος,MATCH(0,COUNTIF($A$2:A45,Πεδίο_ποιος),0)),\"\")","v":""},""]
[{"$f":"IFERROR(INDEX(Πεδίο_ποιος,MATCH(0,COUNTIF($A$2:A46,Πεδίο_ποιος),0)),\"\")","v":""},""]
[{"$f":"IFERROR(INDEX(Πεδίο_ποιος,MATCH(0,COUNTIF($A$2:A47,Πεδίο_ποιος),0)),\"\")","v":""},""]
[{"$f":"IFERROR(INDEX(Πεδίο_ποιος,MATCH(0,COUNTIF($A$2:A48,Πεδίο_ποιος),0)),\"\")","v":""},""]
[{"$f":"IFERROR(INDEX(Πεδίο_ποιος,MATCH(0,COUNTIF($A$2:A49,Πεδίο_ποιος),0)),\"\")","v":""},""]
[{"$f":"IFERROR(INDEX(Πεδίο_ποιος,MATCH(0,COUNTIF($A$2:A50,Πεδίο_ποιος),0)),\"\")","v":""},""]
[{"$f":"IFERROR(INDEX(Πεδίο_ποιος,MATCH(0,COUNTIF($A$2:A51,Πεδίο_ποιος),0)),\"\")","v":""},""]
[{"$f":"IFERROR(INDEX(Πεδίο_ποιος,MATCH(0,COUNTIF($A$2:A52,Πεδίο_ποιος),0)),\"\")","v":""},""]
[{"$f":"IFERROR(INDEX(Πεδίο_ποιος,MATCH(0,COUNTIF($A$2:A53,Πεδίο_ποιος),0)),\"\")","v":""},""]
[{"$f":"IFERROR(INDEX(Πεδίο_ποιος,MATCH(0,COUNTIF($A$2:A54,Πεδίο_ποιος),0)),\"\")","v":""},""]
[{"$f":"IFERROR(INDEX(Πεδίο_ποιος,MATCH(0,COUNTIF($A$2:A55,Πεδίο_ποιος),0)),\"\")","v":""},""]
[{"$f":"IFERROR(INDEX(Πεδίο_ποιος,MATCH(0,COUNTIF($A$2:A56,Πεδίο_ποιος),0)),\"\")","v":""},""]
[{"$f":"IFERROR(INDEX(Πεδίο_ποιος,MATCH(0,COUNTIF($A$2:A57,Πεδίο_ποιος),0)),\"\")","v":""},""]
[{"$f":"IFERROR(INDEX(Πεδίο_ποιος,MATCH(0,COUNTIF($A$2:A58,Πεδίο_ποιος),0)),\"\")","v":""},""]
[{"$f":"IFERROR(INDEX(Πεδίο_ποιος,MATCH(0,COUNTIF($A$2:A59,Πεδίο_ποιος),0)),\"\")","v":""},""]
[{"$f":"IFERROR(INDEX(Πεδίο_ποιος,MATCH(0,COUNTIF($A$2:A60,Πεδίο_ποιος),0)),\"\")","v":""},""]
[{"$f":"IFERROR(INDEX(Πεδίο_ποιος,MATCH(0,COUNTIF($A$2:A61,Πεδίο_ποιος),0)),\"\")","v":""},""]
[{"$f":"IFERROR(INDEX(Πεδίο_ποιος,MATCH(0,COUNTIF($A$2:A62,Πεδίο_ποιος),0)),\"\")","v":""},""]
[{"$f":"IFERROR(INDEX(Πεδίο_ποιος,MATCH(0,COUNTIF($A$2:A63,Πεδίο_ποιος),0)),\"\")","v":""},""]
[{"$f":"IFERROR(INDEX(Πεδίο_ποιος,MATCH(0,COUNTIF($A$2:A64,Πεδίο_ποιος),0)),\"\")","v":""},""]
[{"$f":"IFERROR(INDEX(Πεδίο_ποιος,MATCH(0,COUNTIF($A$2:A65,Πεδίο_ποιος),0)),\"\")","v":""},""]
[{"$f":"IFERROR(INDEX(Πεδίο_ποιος,MATCH(0,COUNTIF($A$2:A66,Πεδίο_ποιος),0)),\"\")","v":""},""]
[{"$f":"IFERROR(INDEX(Πεδίο_ποιος,MATCH(0,COUNTIF($A$2:A67,Πεδίο_ποιος),0)),\"\")","v":""},{"$f":"IF(A68=\"\",\"\",ROW())","v":""}]
[{"$f":"IFERROR(INDEX(Πεδίο_ποιος,MATCH(0,COUNTIF($A$2:A68,Πεδίο_ποιος),0)),\"\")","v":""},""]
[{"$f":"IFERROR(INDEX(Πεδίο_ποιος,MATCH(0,COUNTIF($A$2:A69,Πεδίο_ποιος),0)),\"\")","v":""},""]
[{"$f":"IFERROR(INDEX(Πεδίο_ποιος,MATCH(0,COUNTIF($A$2:A70,Πεδίο_ποιος),0)),\"\")","v":""},""]
[{"$f":"IFERROR(INDEX(Πεδίο_ποιος,MATCH(0,COUNTIF($A$2:A71,Πεδίο_ποιος),0)),\"\")","v":""},""]
[{"$f":"IFERROR(INDEX(Πεδίο_ποιος,MATCH(0,COUNTIF($A$2:A72,Πεδίο_ποιος),0)),\"\")","v":""},""]
[{"$f":"IFERROR(INDEX(Πεδίο_ποιος,MATCH(0,COUNTIF($A$2:A73,Πεδίο_ποιος),0)),\"\")","v":""},""]
[{"$f":"IFERROR(INDEX(Πεδίο_ποιος,MATCH(0,COUNTIF($A$2:A74,Πεδίο_ποιος),0)),\"\")","v":""},""]
[{"$f":"IFERROR(INDEX(Πεδίο_ποιος,MATCH(0,COUNTIF($A$2:A75,Πεδίο_ποιος),0)),\"\")","v":""},""]
[{"$f":"IFERROR(INDEX(Πεδίο_ποιος,MATCH(0,COUNTIF($A$2:A76,Πεδίο_ποιος),0)),\"\")","v":""},""]
[{"$f":"IFERROR(INDEX(Πεδίο_ποιος,MATCH(0,COUNTIF($A$2:A77,Πεδίο_ποιος),0)),\"\")","v":""},""]
[{"$f":"IFERROR(INDEX(Πεδίο_ποιος,MATCH(0,COUNTIF($A$2:A78,Πεδίο_ποιος),0)),\"\")","v":""},""]
[{"$f":"IFERROR(INDEX(Πεδίο_ποιος,MATCH(0,COUNTIF($A$2:A79,Πεδίο_ποιος),0)),\"\")","v":""},""]
[{"$f":"IFERROR(INDEX(Πεδίο_ποιος,MATCH(0,COUNTIF($A$2:A80,Πεδίο_ποιος),0)),\"\")","v":""},""]
[{"$f":"IFERROR(INDEX(Πεδίο_ποιος,MATCH(0,COUNTIF($A$2:A81,Πεδίο_ποιος),0)),\"\")","v":""},""]
[{"$f":"IFERROR(INDEX(Πεδίο_ποιος,MATCH(0,COUNTIF($A$2:A82,Πεδίο_ποιος),0)),\"\")","v":""},""]
[{"$f":"IFERROR(INDEX(Πεδίο_ποιος,MATCH(0,COUNTIF($A$2:A83,Πεδίο_ποιος),0)),\"\")","v":""},""]
[{"$f":"IFERROR(INDEX(Πεδίο_ποιος,MATCH(0,COUNTIF($A$2:A84,Πεδίο_ποιος),0)),\"\")","v":""},""]
[{"$f":"IFERROR(INDEX(Πεδίο_ποιος,MATCH(0,COUNTIF($A$2:A85,Πεδίο_ποιος),0)),\"\")","v":""},""]
[{"$f":"IFERROR(INDEX(Πεδίο_ποιος,MATCH(0,COUNTIF($A$2:A86,Πεδίο_ποιος),0)),\"\")","v":""},""]
[{"$f":"IFERROR(INDEX(Πεδίο_ποιος,MATCH(0,COUNTIF($A$2:A87,Πεδίο_ποιος),0)),\"\")","v":""},""]
[{"$f":"IFERROR(INDEX(Πεδίο_ποιος,MATCH(0,COUNTIF($A$2:A88,Πεδίο_ποιος),0)),\"\")","v":""},""]
[{"$f":"IFERROR(INDEX(Πεδίο_ποιος,MATCH(0,COUNTIF($A$2:A89,Πεδίο_ποιος),0)),\"\")","v":""},""]
[{"$f":"IFERROR(INDEX(Πεδίο_ποιος,MATCH(0,COUNTIF($A$2:A90,Πεδίο_ποιος),0)),\"\")","v":""},""]
[{"$f":"IFERROR(INDEX(Πεδίο_ποιος,MATCH(0,COUNTIF($A$2:A91,Πεδίο_ποιος),0)),\"\")","v":""},""]
[{"$f":"IFERROR(INDEX(Πεδίο_ποιος,MATCH(0,COUNTIF($A$2:A92,Πεδίο_ποιος),0)),\"\")","v":""},""]
[{"$f":"IFERROR(INDEX(Πεδίο_ποιος,MATCH(0,COUNTIF($A$2:A93,Πεδίο_ποιος),0)),\"\")","v":""},""]
[{"$f":"IFERROR(INDEX(Πεδίο_ποιος,MATCH(0,COUNTIF($A$2:A94,Πεδίο_ποιος),0)),\"\")","v":""},""]
[{"$f":"IFERROR(INDEX(Πεδίο_ποιος,MATCH(0,COUNTIF($A$2:A95,Πεδίο_ποιος),0)),\"\")","v":""},""]
[{"$f":"IFERROR(INDEX(Πεδίο_ποιος,MATCH(0,COUNTIF($A$2:A96,Πεδίο_ποιος),0)),\"\")","v":""},""]
[{"$f":"IFERROR(INDEX(Πεδίο_ποιος,MATCH(0,COUNTIF($A$2:A97,Πεδίο_ποιος),0)),\"\")","v":""},""]
[{"$f":"IFERROR(INDEX(Πεδίο_ποιος,MATCH(0,COUNTIF($A$2:A98,Πεδίο_ποιος),0)),\"\")","v":""},""]
[{"$f":"IFERROR(INDEX(Πεδίο_ποιος,MATCH(0,COUNTIF($A$2:A99,Πεδίο_ποιος),0)),\"\")","v":""},""]
[{"$f":"IFERROR(INDEX(Πεδίο_ποιος,MATCH(0,COUNTIF($A$2:A100,Πεδίο_ποιος),0)),\"\")","v":""},""]
[{"$f":"IFERROR(INDEX(Πεδίο_ποιος,MATCH(0,COUNTIF($A$2:A101,Πεδίο_ποιος),0)),\"\")","v":""},""]
[{"$f":"IFERROR(INDEX(Πεδίο_ποιος,MATCH(0,COUNTIF($A$2:A102,Πεδίο_ποιος),0)),\"\")","v":""},""]
[{"$f":"IFERROR(INDEX(Πεδίο_ποιος,MATCH(0,COUNTIF($A$2:A103,Πεδίο_ποιος),0)),\"\")","v":""},""]
[{"$f":"IFERROR(INDEX(Πεδίο_ποιος,MATCH(0,COUNTIF($A$2:A104,Πεδίο_ποιος),0)),\"\")","v":""},""]
[{"$f":"IFERROR(INDEX(Πεδίο_ποιος,MATCH(0,COUNTIF($A$2:A105,Πεδίο_ποιος),0)),\"\")","v":""},""]
[{"$f":"IFERROR(INDEX(Πεδίο_ποιος,MATCH(0,COUNTIF($A$2:A106,Πεδίο_ποιος),0)),\"\")","v":""},""]
[{"$f":"IFERROR(INDEX(Πεδίο_ποιος,MATCH(0,COUNTIF($A$2:A107,Πεδίο_ποιος),0)),\"\")","v":""},""]
[{"$f":"IFERROR(INDEX(Πεδίο_ποιος,MATCH(0,COUNTIF($A$2:A108,Πεδίο_ποιος),0)),\"\")","v":""},""]
[{"$f":"IFERROR(INDEX(Πεδίο_ποιος,MATCH(0,COUNTIF($A$2:A109,Πεδίο_ποιος),0)),\"\")","v":""},""]
[{"$f":"IFERROR(INDEX(Πεδίο_ποιος,MATCH(0,COUNTIF($A$2:A110,Πεδίο_ποιος),0)),\"\")","v":""},""]
[{"$f":"IFERROR(INDEX(Πεδίο_ποιος,MATCH(0,COUNTIF($A$2:A111,Πεδίο_ποιος),0)),\"\")","v":""},""]
[{"$f":"IFERROR(INDEX(Πεδίο_ποιος,MATCH(0,COUNTIF($A$2:A112,Πεδίο_ποιος),0)),\"\")","v":""},""]
[{"$f":"IFERROR(INDEX(Πεδίο_ποιος,MATCH(0,COUNTIF($A$2:A113,Πεδίο_ποιος),0)),\"\")","v":""},""]
[{"$f":"IFERROR(INDEX(Πεδίο_ποιος,MATCH(0,COUNTIF($A$2:A114,Πεδίο_ποιος),0)),\"\")","v":""},""]
[{"$f":"IFERROR(INDEX(Πεδίο_ποιος,MATCH(0,COUNTIF($A$2:A115,Πεδίο_ποιος),0)),\"\")","v":""},""]
[{"$f":"IFERROR(INDEX(Πεδίο_ποιος,MATCH(0,COUNTIF($A$2:A116,Πεδίο_ποιος),0)),\"\")","v":""},""]
[{"$f":"IFERROR(INDEX(Πεδίο_ποιος,MATCH(0,COUNTIF($A$2:A117,Πεδίο_ποιος),0)),\"\")","v":""},""]
[{"$f":"IFERROR(INDEX(Πεδίο_ποιος,MATCH(0,COUNTIF($A$2:A118,Πεδίο_ποιος),0)),\"\")","v":""},""]
[{"$f":"IFERROR(INDEX(Πεδίο_ποιος,MATCH(0,COUNTIF($A$2:A119,Πεδίο_ποιος),0)),\"\")","v":""},""]
[{"$f":"IFERROR(INDEX(Πεδίο_ποιος,MATCH(0,COUNTIF($A$2:A120,Πεδίο_ποιος),0)),\"\")","v":""},""]
[{"$f":"IFERROR(INDEX(Πεδίο_ποιος,MATCH(0,COUNTIF($A$2:A121,Πεδίο_ποιος),0)),\"\")","v":""},""]
[{"$f":"IFERROR(INDEX(Πεδίο_ποιος,MATCH(0,COUNTIF($A$2:A122,Πεδίο_ποιος),0)),\"\")","v":""},""]
[{"$f":"IFERROR(INDEX(Πεδίο_ποιος,MATCH(0,COUNTIF($A$2:A123,Πεδίο_ποιος),0)),\"\")","v":""},""]
[{"$f":"IFERROR(INDEX(Πεδίο_ποιος,MATCH(0,COUNTIF($A$2:A124,Πεδίο_ποιος),0)),\"\")","v":""},""]
[{"$f":"IFERROR(INDEX(Πεδίο_ποιος,MATCH(0,COUNTIF($A$2:A125,Πεδίο_ποιος),0)),\"\")","v":""},""]
[{"$f":"IFERROR(INDEX(Πεδίο_ποιος,MATCH(0,COUNTIF($A$2:A126,Πεδίο_ποιος),0)),\"\")","v":""},""]
[{"$f":"IFERROR(INDEX(Πεδίο_ποιος,MATCH(0,COUNTIF($A$2:A127,Πεδίο_ποιος),0)),\"\")","v":""},""]
[{"$f":"IFERROR(INDEX(Πεδίο_ποιος,MATCH(0,COUNTIF($A$2:A128,Πεδίο_ποιος),0)),\"\")","v":""},""]
[{"$f":"IFERROR(INDEX(Πεδίο_ποιος,MATCH(0,COUNTIF($A$2:A129,Πεδίο_ποιος),0)),\"\")","v":""},""]
[{"$f":"IFERROR(INDEX(Πεδίο_ποιος,MATCH(0,COUNTIF($A$2:A130,Πεδίο_ποιος),0)),\"\")","v":""},""]
[{"$f":"IFERROR(INDEX(Πεδίο_ποιος,MATCH(0,COUNTIF($A$2:A131,Πεδίο_ποιος),0)),\"\")","v":""},{"$f":"IF(A132=\"\",\"\",ROW())","v":""}]